[Event "Championnat d'Europe Rapide"]
[Date "2024.12.07"]
[White "Grigoriants, Sergey"]
[Black "Ciric, Pavle"]
[WhiteElo "2542"]
[BlackElo "2346"]
[Round "2.27"]
[Result "1-0"]
[TimeControl "900+10"]

1. e4 {[%emt 00:00:03] [%clk 00:15:16]} e6 {[%emt 00:00:04] [%clk 00:15:17]} 2.
d4 {[%emt 00:00:05] [%clk 00:15:20]} d5 {[%emt 00:00:03] [%clk 00:15:25]} 3. Nc3
{[%emt 00:00:03] [%clk 00:15:26]} Nf6 {[%emt 00:00:03] [%clk 00:15:32]} 4. e5
{[%emt 00:00:05] [%clk 00:15:31]} Nfd7 {[%emt 00:00:02] [%clk 00:15:40]} 5. f4
{[%emt 00:00:04] [%clk 00:15:36]} c5 {[%emt 00:00:02] [%clk 00:15:48]} 6. Nf3
{[%emt 00:00:02] [%clk 00:15:44]} Nc6 {[%emt 00:00:02] [%clk 00:15:57]} 7. Be3
{[%emt 00:00:02] [%clk 00:15:52]} Rb8 {[%emt 00:01:12] [%clk 00:14:55]} 8. Qd2
{[%emt 00:00:28] [%clk 00:15:35]} Qa5 {[%emt 00:00:05] [%clk 00:15:00]} 9. Be2
{[%emt 00:01:18] [%clk 00:14:26]} b5 {[%emt 00:00:04] [%clk 00:15:07]} 10. O-O
{[%emt 00:00:04] [%clk 00:14:32]} b4 {[%emt 00:00:04] [%clk 00:15:13]} 11. Nd1
{[%emt 00:00:03] [%clk 00:14:38]} Be7 {[%emt 00:00:06] [%clk 00:15:16]} 12. Nf2
{[%emt 00:00:43] [%clk 00:14:06]} Ba6 {[%emt 00:00:03] [%clk 00:15:23]} 13. dxc5
{[%emt 00:03:56] [%clk 00:10:20]} Bxe2 {[%emt 00:01:31] [%clk 00:14:01]} 14.
Qxe2 {[%emt 00:00:02] [%clk 00:10:29]} Bxc5 {[%emt 00:00:08] [%clk 00:14:03]}
15. Kh1 {[%emt 00:00:16] [%clk 00:10:24]} Qb6 {[%emt 00:04:00] [%clk 00:10:13]}
16. Bd2 {[%emt 00:01:06] [%clk 00:09:28]} Bxf2 {[%emt 00:02:19] [%clk 00:08:04]}
17. Rxf2 {[%emt 00:00:02] [%clk 00:09:36]} Nc5 {[%emt 00:00:02] [%clk 00:08:12]}
18. Be3 {[%emt 00:00:26] [%clk 00:09:20]} Qb5 {[%emt 00:00:02] [%clk 00:08:21]}
19. Bxc5 {[%emt 00:01:47] [%clk 00:07:43]} Qxc5 {[%emt 00:00:02] [%clk
00:08:28]} 20. Raf1 {[%emt 00:00:01] [%clk 00:07:52]} Ne7 {[%emt 00:02:14] [%clk
00:06:24]} 21. Qd3 {[%emt 00:03:02] [%clk 00:05:00]} Qb5 {[%emt 00:01:32] [%clk
00:05:03]} 22. Nd4 {[%emt 00:01:11] [%clk 00:03:58]} Qxd3 {[%emt 00:00:02] [%clk
00:05:10]} 23. cxd3 {[%emt 00:00:01] [%clk 00:04:07]} g6 {[%emt 00:01:27] [%clk
00:03:53]} 24. Rc2 {[%emt 00:01:58] [%clk 00:02:20]} Kd7 {[%emt 00:00:16] [%clk
00:03:47]} 25. Rfc1 {[%emt 00:00:08] [%clk 00:02:22]} Rhc8 {[%emt 00:00:02]
[%clk 00:03:55]} 26. Kg1 {[%emt 00:00:08] [%clk 00:02:24]} Rxc2 {[%emt 00:01:02]
[%clk 00:03:03]} 27. Rxc2 {[%emt 00:00:01] [%clk 00:02:33]} Rb6 {[%emt 00:01:37]
[%clk 00:01:36]} 28. Kf2 {[%emt 00:00:34] [%clk 00:02:09]} Nc6 {[%emt 00:01:01]
[%clk 00:00:45]} 29. Nb3 {[%emt 00:00:45] [%clk 00:01:35]} Kd8 {[%emt 00:00:30]
[%clk 00:00:25]} 30. Ke3 {[%emt 00:00:24] [%clk 00:01:21]} Ne7 {[%emt 00:00:02]
[%clk 00:00:32]} 31. Nd4 {[%emt 00:00:07] [%clk 00:01:24]} Kd7 {[%emt 00:00:10]
[%clk 00:00:33]} 32. Rc5 {[%emt 00:00:28] [%clk 00:01:06]} Nc6 {[%emt 00:00:26]
[%clk 00:00:17]} 33. g4 {[%emt 00:00:35] [%clk 00:00:41]} Nxd4 {[%emt 00:00:03]
[%clk 00:00:24]} 34. Kxd4 {[%emt 00:00:01] [%clk 00:00:49]} Ra6 {[%emt 00:00:13]
[%clk 00:00:22]} 35. Rb5 {[%emt 00:00:02] [%clk 00:00:57]} Kc6 {[%emt 00:00:03]
[%clk 00:00:28]} 36. Rxb4 {[%emt 00:00:03] [%clk 00:01:04]} Rxa2 {[%emt
00:00:01] [%clk 00:00:37]} 37. Rb8 {[%emt 00:00:10] [%clk 00:01:04]} a5 {[%emt
00:00:04] [%clk 00:00:43]} 38. Kc3 {[%emt 00:00:42] [%clk 00:00:32]} Ra4 {[%emt
00:00:05] [%clk 00:00:48]} 39. d4 {[%emt 00:00:04] [%clk 00:00:38]} Rc4+ {[%clk
00:00:57]} 40. Kd3 {[%clk 00:00:47]} Rb4 {[%emt 00:00:05] [%clk 00:01:02]} 41.
Rxb4 {[%emt 00:00:35] [%clk 00:00:22]} axb4 {[%emt 00:00:01] [%clk 00:01:11]}
42. Ke3 {[%emt 00:00:07] [%clk 00:00:25]} Kd7 {[%emt 00:00:48] [%clk 00:00:33]}
43. Kf3 {[%emt 00:00:09] [%clk 00:00:26]} Ke7 {[%emt 00:00:08] [%clk 00:00:35]}
44. Kg3 {[%emt 00:00:02] [%clk 00:00:34]} f6 {[%emt 00:00:09] [%clk 00:00:36]}
45. exf6+ {[%emt 00:00:19] [%clk 00:00:24]} Kxf6 {[%emt 00:00:01] [%clk
00:00:45]} 46. Kh4 {[%emt 00:00:08] [%clk 00:00:27]} h6 {[%emt 00:00:16] [%clk
00:00:40]} 47. Kg3 {[%emt 00:00:11] [%clk 00:00:25]} g5 {[%emt 00:00:34] [%clk
00:00:16]} 48. h4 {[%emt 00:00:17] [%clk 00:00:18]} gxh4+ {[%emt 00:00:13] [%clk
00:00:13]} 49. Kxh4 {[%emt 00:00:01] [%clk 00:00:27]} Kg6 {[%emt 00:00:06] [%clk
00:00:17]} 50. b3 {[%emt 00:00:04] [%clk 00:00:33]} Kf6 {[%emt 00:00:12] [%clk
00:00:15]} 51. Kh5 {[%emt 00:00:06] [%clk 00:00:36]} Kg7 {[%emt 00:00:01] [%clk
00:00:25]} 52. g5 {[%emt 00:00:21] [%clk 00:00:25]} hxg5 {[%emt 00:00:03] [%clk
00:00:32]} 53. Kxg5 {[%emt 00:00:11] [%clk 00:00:24]} Kf7 {[%emt 00:00:06] [%clk
00:00:36]} 54. f5 {[%emt 00:00:01] [%clk 00:00:33]} Ke7 {[%emt 00:00:07] [%clk
00:00:40]} 55. fxe6 {[%emt 00:00:10] [%clk 00:00:33]} Kxe6 {[%emt 00:00:03]
[%clk 00:00:47]} 56. Kg6 {[%emt 00:00:01] [%clk 00:00:41]} 1-0

[Site "Europe Echecs"]

[Event "Championnat d'Europe Rapide"]
[Date "2024.12.07"]
[White "Saric, Ante"]
[Black "Biljanic, Ljubomir"]
[WhiteElo "2482"]
[BlackElo "2130"]
[Round "2.28"]
[Result "1-0"]
[TimeControl "900+10"]

1. Nf3 {[%emt 00:00:02] [%clk 00:15:18]} d6 {[%emt 00:00:05] [%clk 00:15:15]} 2.
d4 {[%emt 00:00:01] [%clk 00:15:26]} e6 {[%emt 00:00:09] [%clk 00:15:17]} 3. c4
{[%emt 00:00:10] [%clk 00:15:26]} Nf6 {[%emt 00:00:02] [%clk 00:15:25]} 4. Nc3
{[%emt 00:00:02] [%clk 00:15:34]} Be7 {[%emt 00:00:02] [%clk 00:15:33]} 5. e4
{[%emt 00:00:02] [%clk 00:15:43]} O-O {[%emt 00:00:32] [%clk 00:15:11]} 6. Be2
{[%emt 00:00:11] [%clk 00:15:42]} c5 {[%emt 00:00:32] [%clk 00:14:50]} 7. d5
{[%emt 00:00:03] [%clk 00:15:49]} e5 {[%emt 00:00:05] [%clk 00:14:55]} 8. O-O
{[%emt 00:00:09] [%clk 00:15:49]} Nbd7 {[%emt 00:00:10] [%clk 00:14:55]} 9. Ne1
{[%emt 00:00:10] [%clk 00:15:50]} Re8 {[%emt 00:00:10] [%clk 00:14:55]} 10. Nd3
{[%emt 00:00:14] [%clk 00:15:46]} Nf8 {[%emt 00:00:12] [%clk 00:14:52]} 11. Rb1
{[%emt 00:00:17] [%clk 00:15:39]} Ng6 {[%emt 00:00:23] [%clk 00:14:39]} 12. b4
{[%emt 00:00:03] [%clk 00:15:47]} cxb4 {[%emt 00:00:24] [%clk 00:14:25]} 13.
Rxb4 {[%emt 00:00:05] [%clk 00:15:51]} Nd7 {[%emt 00:00:23] [%clk 00:14:12]} 14.
Bg4 {[%emt 00:00:29] [%clk 00:15:33]} b6 {[%emt 00:00:46] [%clk 00:13:36]} 15.
g3 {[%emt 00:00:06] [%clk 00:15:36]} Bg5 {[%emt 00:00:36] [%clk 00:13:10]} 16.
Bxg5 {[%emt 00:00:08] [%clk 00:15:39]} Qxg5 {[%emt 00:00:02] [%clk 00:13:18]}
17. Nb5 {[%emt 00:00:02] [%clk 00:15:47]} Qe7 {[%emt 00:03:02] [%clk 00:10:26]}
18. f3 {[%emt 00:03:56] [%clk 00:12:01]} Nc5 {[%emt 00:01:08] [%clk 00:09:28]}
19. Nxc5 {[%emt 00:00:02] [%clk 00:12:08]} bxc5 {[%emt 00:01:04] [%clk
00:08:34]} 20. Rb2 {[%emt 00:00:09] [%clk 00:12:10]} Rb8 {[%emt 00:01:57] [%clk
00:06:47]} 21. Rff2 {[%emt 00:00:28] [%clk 00:11:52]} a6 {[%emt 00:00:15] [%clk
00:06:42]} 22. Nc3 {[%emt 00:00:04] [%clk 00:11:57]} Rb4 {[%emt 00:00:16] [%clk
00:06:37]} 23. Qd3 {[%emt 00:03:37] [%clk 00:08:30]} Bxg4 {[%emt 00:00:20] [%clk
00:06:26]} 24. fxg4 {[%emt 00:00:01] [%clk 00:08:39]} Reb8 {[%emt 00:00:43]
[%clk 00:05:54]} 25. Rbc2 {[%emt 00:00:01] [%clk 00:08:49]} Qg5 {[%emt 00:00:29]
[%clk 00:05:34]} 26. Qe2 {[%emt 00:00:06] [%clk 00:08:53]} h5 {[%emt 00:01:10]
[%clk 00:04:34]} 27. gxh5 {[%emt 00:06:09] [%clk 00:02:54]} Nf4 {[%emt 00:00:02]
[%clk 00:04:42]} 28. Qf1 {[%emt 00:00:31] [%clk 00:02:33]} Qg4 {[%emt 00:01:20]
[%clk 00:03:31]} 29. Kh1 {[%emt 00:00:13] [%clk 00:02:31]} Nxh5 {[%emt 00:00:04]
[%clk 00:03:36]} 30. Qe2 {[%emt 00:01:55] [%clk 00:00:46]} Qh3 {[%emt 00:02:04]
[%clk 00:01:41]} 31. Kg1 {[%emt 00:00:11] [%clk 00:00:46]} g6 {[%emt 00:00:31]
[%clk 00:01:20]} 32. Qf3 {[%emt 00:00:22] [%clk 00:00:34]} R8b7 {[%emt 00:00:18]
[%clk 00:01:12]} 33. Nd1 {[%emt 00:00:03] [%clk 00:00:41]} Rb1 {[%emt 00:00:13]
[%clk 00:01:08]} 34. Rf1 {[%emt 00:00:05] [%clk 00:00:48]} a5 {[%emt 00:00:21]
[%clk 00:00:57]} 35. Rcf2 {[%emt 00:00:06] [%clk 00:00:52]} a4 {[%emt 00:00:08]
[%clk 00:00:59]} 36. Nc3 {[%emt 00:00:11] [%clk 00:00:50]} Rxf1+ {[%emt
00:00:08] [%clk 00:01:00]} 37. Rxf1 {[%emt 00:00:01] [%clk 00:00:59]} f6 {[%emt
00:00:37] [%clk 00:00:33]} 38. Nb5 {[%emt 00:00:03] [%clk 00:01:07]} Rd7 {[%emt
00:00:04] [%clk 00:00:39]} 39. Rf2 {[%emt 00:00:11] [%clk 00:01:06]} Rd8 {[%emt
00:00:11] [%clk 00:00:37]} 40. Qd1 {[%emt 00:00:12] [%clk 00:01:05]} f5 {[%emt
00:00:11] [%clk 00:00:36]} 41. exf5 {[%emt 00:00:13] [%clk 00:01:02]} gxf5
{[%clk 00:00:45]} 42. Qc2 {[%emt 00:00:22] [%clk 00:00:49]} e4 {[%emt 00:00:22]
[%clk 00:00:34]} 43. Qd2 {[%emt 00:00:05] [%clk 00:00:53]} Rd7 {[%emt 00:00:11]
[%clk 00:00:33]} 44. Qg5+ {[%emt 00:00:10] [%clk 00:00:54]} Rg7 {[%clk
00:00:43]} 45. Qxf5 {[%emt 00:00:10] [%clk 00:00:53]} Qxf5 {[%emt 00:00:31]
[%clk 00:00:22]} 46. Rxf5 {[%emt 00:00:01] [%clk 00:01:02]} e3 {[%emt 00:00:05]
[%clk 00:00:26]} 47. Rxh5 {[%emt 00:00:17] [%clk 00:00:55]} Rf7 {[%emt 00:00:06]
[%clk 00:00:30]} 48. Nc3 {[%emt 00:00:03] [%clk 00:01:02]} Rf2 {[%emt 00:00:06]
[%clk 00:00:34]} 49. Rh4 {[%emt 00:00:21] [%clk 00:00:52]} Rc2 {[%emt 00:00:04]
[%clk 00:00:38]} 50. Rg4+ {[%emt 00:00:09] [%clk 00:00:54]} Kh7 {[%emt 00:00:02]
[%clk 00:00:45]} 51. Ne4 {[%emt 00:00:30] [%clk 00:00:34]} Rc1+ {[%emt 00:00:09]
[%clk 00:00:46]} 52. Kg2 {[%clk 00:00:44]} e2 {[%emt 00:00:14] [%clk 00:00:41]}
53. Ng5+ {[%clk 00:00:53]} Kh6 {[%emt 00:00:12] [%clk 00:00:39]} 54. Nf7+ {[%emt
00:00:07] [%clk 00:00:56]} Kh5 {[%emt 00:00:10] [%clk 00:00:39]} 55. Rg5# {[%emt
00:00:02] [%clk 00:01:04]} 1-0

[Site "Europe Echecs"]

[Event "Championnat d'Europe Rapide"]
[Date "2024.12.07"]
[White "Pantsulaia, Levan"]
[Black "Triadu Cassa, Jordi"]
[WhiteElo "2522"]
[BlackElo "2108"]
[Round "2.29"]
[Result "1-0"]
[TimeControl "900+10"]

1. Nf3 {[%emt 00:00:02] [%clk 00:15:16]} d5 {[%emt 00:00:18] [%clk 00:15:01]} 2.
c4 {[%emt 00:00:02] [%clk 00:15:23]} c6 {[%emt 00:00:05] [%clk 00:15:08]} 3. g3
{[%clk 00:15:31]} Nf6 {[%emt 00:00:25] [%clk 00:14:54]} 4. Bg2 {[%emt 00:00:01]
[%clk 00:15:39]} a6 {[%emt 00:01:21] [%clk 00:13:43]} 5. O-O {[%emt 00:00:37]
[%clk 00:15:12]} g6 {[%emt 00:01:18] [%clk 00:12:36]} 6. b3 {[%emt 00:00:06]
[%clk 00:15:16]} Bg7 {[%emt 00:00:02] [%clk 00:12:44]} 7. Bb2 {[%emt 00:00:01]
[%clk 00:15:24]} O-O {[%emt 00:00:07] [%clk 00:12:48]} 8. d3 {[%emt 00:00:05]
[%clk 00:15:29]} Nbd7 {[%emt 00:00:46] [%clk 00:12:12]} 9. Nbd2 {[%emt 00:00:06]
[%clk 00:15:33]} b5 {[%emt 00:00:10] [%clk 00:12:13]} 10. Rc1 {[%emt 00:00:05]
[%clk 00:15:37]} Bb7 {[%emt 00:00:37] [%clk 00:11:46]} 11. Rc2 {[%emt 00:00:46]
[%clk 00:15:01]} Rc8 {[%emt 00:01:03] [%clk 00:10:53]} 12. Qa1 {[%emt 00:00:02]
[%clk 00:15:09]} c5 {[%emt 00:02:01] [%clk 00:09:03]} 13. cxd5 {[%emt 00:00:03]
[%clk 00:15:16]} Bxd5 {[%emt 00:00:02] [%clk 00:09:11]} 14. Rfc1 {[%emt
00:00:19] [%clk 00:15:06]} Bb7 {[%emt 00:01:12] [%clk 00:08:09]} 15. Bh3 {[%emt
00:00:29] [%clk 00:14:47]} e6 {[%emt 00:01:00] [%clk 00:07:20]} 16. Ne5 {[%emt
00:00:24]} Bh6 {[%emt 00:00:45] [%clk 00:06:43]} 17. Nxd7 {[%emt 00:01:08] [%clk
00:13:37]} Nxd7 {[%emt 00:00:03] [%clk 00:06:49]} 18. e3 {[%emt 00:00:18] [%clk
00:13:29]} f5 {[%emt 00:01:34] [%clk 00:05:26]} 19. a3 {[%emt 00:00:02] [%clk
00:13:38]} Qe7 {[%emt 00:00:27] [%clk 00:05:09]} 20. Bg2 {[%emt 00:00:23] [%clk
00:13:24]} Bxg2 {[%emt 00:00:26] [%clk 00:04:53]} 21. Kxg2 {[%emt 00:00:01]
[%clk 00:13:33]} e5 {[%emt 00:00:06] [%clk 00:04:58]} 22. b4 {[%emt 00:00:08]
[%clk 00:13:34]} f4 {[%emt 00:00:06] [%clk 00:05:01]} 23. Qa2+ {[%clk 00:12:22]}
Rf7 {[%emt 00:01:35] [%clk 00:04:59]} 24. exf4 {[%emt 00:00:21]} exf4 {[%emt
00:00:48]} 25. Nf3 {[%emt 00:00:37] [%clk 00:11:18]} fxg3 {[%emt 00:01:43] [%clk
00:03:13]} 26. Re1 {[%clk 00:11:27]} Qd6 {[%emt 00:00:20] [%clk 00:03:03]} 27.
hxg3 {[%emt 00:00:07] [%clk 00:11:30]} Qc6 {[%emt 00:01:08] [%clk 00:02:06]} 28.
Re4 {[%emt 00:00:03] [%clk 00:11:36]} c4 {[%emt 00:00:13] [%clk 00:02:03]} 29.
Nd4 {[%emt 00:00:26] [%clk 00:11:19]} Qd5 {[%emt 00:00:13] [%clk 00:02:01]} 30.
f3 {[%emt 00:00:12] [%clk 00:11:17]} Ne5 {[%emt 00:00:32] [%clk 00:01:39]} 31.
dxc4 {[%emt 00:01:53] [%clk 00:09:35]} Nxc4 {[%emt 00:00:05] [%clk 00:01:45]}
32. Qb3 {[%emt 00:00:14] [%clk 00:09:30]} Rcf8 {[%emt 00:00:15] [%clk 00:01:40]}
33. Rce2 {[%emt 00:02:45] [%clk 00:06:54]} Bg7 {[%emt 00:00:40] [%clk 00:01:10]}
34. Ba1 {[%emt 00:03:29] [%clk 00:03:36]} Bxd4 {[%emt 00:00:11] [%clk 00:01:10]}
35. Rxd4 {[%emt 00:00:01] [%clk 00:03:44]} Qxf3+ {[%emt 00:00:13] [%clk
00:01:07]} 36. Qxf3 {[%emt 00:00:01] [%clk 00:03:53]} Rxf3 {[%clk 00:01:16]} 37.
Rd7 {[%emt 00:00:18] [%clk 00:03:44]} R3f7 {[%emt 00:01:06] [%clk 00:00:21]} 38.
Rd5 {[%emt 00:01:04] [%clk 00:02:49]} h5 {[%emt 00:00:09] [%clk 00:00:23]} 39.
Bd4 {[%emt 00:00:26] [%clk 00:02:32]} Rf5 {[%emt 00:00:16] [%clk 00:00:18]} 40.
Rxf5 {[%emt 00:00:08] [%clk 00:02:34]} Rxf5 {[%emt 00:00:02] [%clk 00:00:26]}
41. Re6 {[%clk 00:02:43]} Rd5 {[%emt 00:00:08] [%clk 00:00:28]} 42. Bc5 {[%emt
00:00:06] [%clk 00:02:47]} Kf7 {[%emt 00:00:15] [%clk 00:00:23]} 43. Rxa6 {[%emt
00:00:01] [%clk 00:02:56]} Rd3 {[%emt 00:00:03] [%clk 00:00:30]} 44. a4 {[%emt
00:00:02] [%clk 00:03:04]} bxa4 {[%emt 00:00:16] [%clk 00:00:24]} 45. Rxa4
{[%emt 00:00:01] [%clk 00:03:13]} Ne3+ {[%emt 00:00:03] [%clk 00:00:31]} 46. Kf3
{[%emt 00:00:18] [%clk 00:03:05]} Nf5+ {[%emt 00:00:10] [%clk 00:00:32]} 47. Ke4
{[%clk 00:03:13]} Rxg3 {[%emt 00:00:04] [%clk 00:00:38]} 48. Ke5 {[%emt
00:00:03] [%clk 00:03:20]} h4 {[%emt 00:00:16] [%clk 00:00:32]} 49. Ra7+ {[%clk
00:03:29]} Kg8 {[%emt 00:00:02] [%clk 00:00:41]} 50. b5 {[%emt 00:00:22] [%clk
00:03:17]} h3 {[%emt 00:00:10] [%clk 00:00:40]} 51. Ra2 {[%emt 00:00:05] [%clk
00:03:22]} Rg2 {[%emt 00:00:11] [%clk 00:00:39]} 52. Rxg2 {[%emt 00:00:16] [%clk
00:03:16]} hxg2 {[%clk 00:00:48]} 53. Ke6 {[%emt 00:00:52] [%clk 00:02:34]} Ng3
{[%emt 00:00:46] [%clk 00:00:12]} 54. b6 {[%emt 00:00:10] [%clk 00:02:34]} Ne4
{[%emt 00:00:01] [%clk 00:00:21]} 55. Be3 {[%emt 00:00:34] [%clk 00:02:08]} Ng5+
{[%emt 00:00:20] [%clk 00:00:12]} 56. Ke7 {[%emt 00:00:04] [%clk 00:02:13]} 1-0

[Site "Europe Echecs"]

[Event "Championnat d'Europe Rapide"]
[Date "2024.12.07"]
[White "Kadric, Denis"]
[Black "Promyshlyanskiy, Vitaliy"]
[WhiteElo "2544"]
[BlackElo "2279"]
[Round "2.30"]
[Result "1-0"]
[TimeControl "900+10"]

1. e4 {[%emt 00:00:02] [%clk 00:15:17]} e5 {[%emt 00:00:02] [%clk 00:15:19]} 2.
Nf3 {[%emt 00:00:03] [%clk 00:15:25]} Nc6 {[%clk 00:15:28]} 3. Bc4 {[%emt
00:00:01] [%clk 00:15:34]} Nf6 {[%emt 00:00:01] [%clk 00:15:37]} 4. d3 {[%clk
00:15:43]} Be7 {[%emt 00:00:02] [%clk 00:15:45]} 5. O-O {[%emt 00:00:11] [%clk
00:15:41]} O-O {[%emt 00:00:07] [%clk 00:15:48]} 6. Nc3 {[%clk 00:15:50]} d6
{[%emt 00:00:07] [%clk 00:15:52]} 7. a4 {[%emt 00:00:01] [%clk 00:15:58]} Bg4
{[%emt 00:00:22] [%clk 00:15:41]} 8. h3 {[%emt 00:00:01] [%clk 00:16:07]} Bh5
{[%emt 00:00:02] [%clk 00:15:49]} 9. Be3 {[%emt 00:00:48] [%clk 00:15:29]} Qd7
{[%emt 00:00:31] [%clk 00:15:29]} 10. Nd5 {[%emt 00:00:39] [%clk 00:14:59]} Kh8
{[%emt 00:00:47] [%clk 00:14:51]} 11. c3 {[%emt 00:01:05] [%clk 00:14:04]} Bxf3
{[%emt 00:01:40] [%clk 00:13:21]} 12. Qxf3 {[%emt 00:00:02] [%clk 00:14:12]} Ng8
{[%emt 00:00:49] [%clk 00:12:43]} 13. g4 {[%emt 00:01:10] [%clk 00:13:12]} Nd8
{[%emt 00:00:09] [%clk 00:12:43]} 14. Qg3 {[%emt 00:00:12] [%clk 00:13:10]} Ne6
{[%emt 00:00:53] [%clk 00:12:00]} 15. f4 {[%emt 00:00:07] [%clk 00:13:12]} c6
{[%emt 00:00:29] [%clk 00:11:42]} 16. Nxe7 {[%emt 00:00:10] [%clk 00:13:12]}
Nxf4 {[%emt 00:00:49] [%clk 00:11:03]} 17. Bxf4 {[%emt 00:01:15] [%clk
00:12:07]} exf4 {[%emt 00:00:05] [%clk 00:11:08]} 18. Rxf4 {[%emt 00:00:03]
[%clk 00:12:14]} Qxe7 {[%emt 00:00:24] [%clk 00:10:53]} 19. Raf1 {[%emt
00:00:02] [%clk 00:12:23]} f6 {[%emt 00:00:37] [%clk 00:10:26]} 20. d4 {[%emt
00:01:05] [%clk 00:11:28]} Rfe8 {[%emt 00:01:40] [%clk 00:08:56]} 21. h4 {[%emt
00:00:34] [%clk 00:11:04]} Rad8 {[%emt 00:00:49] [%clk 00:08:18]} 22. Kh2 {[%emt
00:02:07] [%clk 00:09:07]} Qc7 {[%emt 00:01:54] [%clk 00:06:34]} 23. Bd3 {[%emt
00:02:26] [%clk 00:06:51]} Re7 {[%emt 00:00:34] [%clk 00:06:10]} 24. g5 {[%emt
00:00:33] [%clk 00:06:28]} Rde8 {[%emt 00:00:36] [%clk 00:05:44]} 25. R4f3
{[%emt 00:01:38] [%clk 00:04:59]} Qd8 {[%emt 00:01:38] [%clk 00:04:16]} 26. R1f2
{[%emt 00:01:20] [%clk 00:03:49]} a6 {[%emt 00:00:53] [%clk 00:03:34]} 27. Rg2
{[%emt 00:00:11] [%clk 00:03:47]} Qc7 {[%emt 00:01:43] [%clk 00:02:01]} 28. Bc2
{[%emt 00:00:12] [%clk 00:03:45]} c5 {[%emt 00:00:20] [%clk 00:01:51]} 29. Rd2
{[%emt 00:02:20] [%clk 00:01:35]} c4 {[%emt 00:00:27] [%clk 00:01:34]} 30. Rg2
{[%emt 00:00:19] [%clk 00:01:25]} Qd7 {[%emt 00:00:56] [%clk 00:00:49]} 31. Rf5
{[%emt 00:00:09] [%clk 00:01:26]} Re6 {[%emt 00:00:34] [%clk 00:00:25]} 32. Rf3
{[%emt 00:00:55] [%clk 00:00:41]} R6e7 {[%emt 00:00:09] [%clk 00:00:26]} 33. Qf4
{[%emt 00:00:21] [%clk 00:00:30]} Re6 {[%emt 00:00:19] [%clk 00:00:17]} 34. Qf5
{[%emt 00:00:18] [%clk 00:00:22]} Ne7 {[%emt 00:00:15] [%clk 00:00:12]} 35. Qg4
{[%emt 00:00:07] [%clk 00:00:25]} Ng8 {[%emt 00:00:02] [%clk 00:00:20]} 36. Qh5
{[%emt 00:00:17] [%clk 00:00:18]} g6 {[%emt 00:00:09] [%clk 00:00:21]} 37. Qg4
{[%clk 00:00:27]} f5 {[%emt 00:00:18] [%clk 00:00:13]} 38. exf5 {[%emt 00:00:04]
[%clk 00:00:33]} Re2 {[%emt 00:00:01] [%clk 00:00:22]} 39. Rff2 {[%emt 00:00:14]
[%clk 00:00:29]} Rxf2 {[%emt 00:00:05] [%clk 00:00:27]} 40. Rxf2 {[%emt
00:00:01] [%clk 00:00:38]} gxf5 {[%emt 00:00:11] [%clk 00:00:26]} 41. Qxf5
{[%emt 00:00:19] [%clk 00:00:29]} Qxf5 {[%emt 00:00:11] [%clk 00:00:25]} 42.
Bxf5 {[%emt 00:00:01] [%clk 00:00:38]} Rf8 {[%emt 00:00:01] [%clk 00:00:34]} 43.
Kg3 {[%emt 00:00:04] [%clk 00:00:43]} Ne7 {[%emt 00:00:07] [%clk 00:00:37]} 44.
Be4 {[%emt 00:00:02] [%clk 00:00:51]} Rxf2 {[%emt 00:00:05] [%clk 00:00:42]} 45.
Kxf2 {[%clk 00:01:00]} d5 {[%emt 00:00:03] [%clk 00:00:50]} 46. Bc2 {[%emt
00:00:05] [%clk 00:01:05]} Kg7 {[%emt 00:00:29] [%clk 00:00:31]} 47. Kg3 {[%clk
00:01:14]} Nc6 {[%emt 00:00:19] [%clk 00:00:22]} 48. Kf4 {[%emt 00:00:05] [%clk
00:01:20]} b5 {[%emt 00:00:13] [%clk 00:00:20]} 49. Bd1 {[%emt 00:00:04] [%clk
00:01:25]} Kf7 {[%emt 00:00:15] [%clk 00:00:15]} 50. h5 {[%emt 00:00:10] [%clk
00:01:25]} b4 {[%emt 00:00:07] [%clk 00:00:18]} 51. Bf3 {[%emt 00:00:28] [%clk
00:01:07]} Ke6 {[%emt 00:00:05] [%clk 00:00:23]} 52. Bg4+ {[%clk 00:01:16]} Kf7
{[%emt 00:00:06] [%clk 00:00:27]} 53. Bf5 {[%emt 00:00:01] [%clk 00:01:24]} a5
{[%emt 00:00:22] [%clk 00:00:15]} 54. Bxh7 {[%emt 00:00:10] [%clk 00:01:24]} Ke6
{[%emt 00:00:13] [%clk 00:00:13]} 55. h6 {[%emt 00:00:05] [%clk 00:01:28]} Ne7
{[%emt 00:00:03] [%clk 00:00:19]} 56. g6 {[%emt 00:00:20] [%clk 00:01:18]} Nf5
{[%emt 00:00:13] [%clk 00:00:17]} 57. g7 {[%emt 00:00:01] [%clk 00:01:27]} Nxh6
{[%emt 00:00:04] [%clk 00:00:22]} 58. Kg5 {[%emt 00:00:15] [%clk 00:01:22]} Nf7+
{[%emt 00:00:08] [%clk 00:00:24]} 59. Kh5 {[%emt 00:00:02] [%clk 00:01:30]} 1-0

[Site "Europe Echecs"]